[Event "69th RUS-ch Women Superfinal 2019"]
[Site "Izhevsk"]
[Date "2019.08.22"]
[Round "11.2"]
[White "Shafigullina, Zarina"]
[Black "Pogonina, Natalija"]
[Result "0-1"]
[ECO "D02"]
[WhiteElo "2246"]
[BlackElo "2457"]
[Annotator "ChessBase"]
[PlyCount "110"]
[EventDate "2019.08.10"]
[EventType "tourn"]
[EventCountry "RUS"]
[SourceTitle "playchess.com"]
[Source "ChessBase"]
[SourceQuality "1"]
[TimeControl "40/5400+30:1800+30"]

1. d4 {[%emt 0:00:00]} d5 {[%emt 0:00:00]} 2. Nf3 {[%emt 0:00:00]} Nf6 {[%emt 0:00:00]} 3. g3 {[%emt 0:00:00]} e6 {[%emt 0:01:51]} 4. Bg2 {[%emt 0:00:11]} b5 {[%emt 0:00:54]} 5. O-O {[%emt 0:00:22]} Be7 {[%emt 0:00:13]} 6. Ne5 {[%emt 0:01:41]} O-O {[%emt 0:00:21]} 7. b3 {[%emt 0:01:20]} c5 {[%emt 0:03:38]} 8. c4 {[%emt 0:01:58]} bxc4 {[%emt 0:05:55]} 9. bxc4 {[%emt 0:00:11]} Bb7 {[%emt 0:00:15]} 10. Qb3 {[%emt 0:08:59]} Qc8 {[%emt 0:19:39]} 11. Ba3 {[%emt 0:02:08]} Nbd7 {[%emt 0:11:38]} 12. Nxd7 {[%emt 0:03:39]} Qxd7 {[%emt 0:00:05]} 13. Bxc5 {[%emt 0:03:58]} Bxc5 {[%emt 0:06:02]} 14. dxc5 {[%emt 0:00:05]} Rac8 {[%emt 0:00:33]} 15. cxd5 {[%emt 0:02:25]} Bxd5 {[%emt 0:04:17]} 16. Bxd5 {[%emt 0:01:37]} exd5 {[%emt 0:00:49]} 17. Rc1 {[%emt 0:02:58]} Qe7 {[%emt 0:03:13]} 18. Qb5 {[%emt 0:00:31]} Ne4 {[%emt 0:09:28]} 19. Qb2 {[%emt 0:02:26]} Nxc5 {[%emt 0:07:02]} 20. Nc3 {[%emt 0:02:50]} d4 {[%emt 0:03:23]} 21. Nd5 {[%emt 0:01:18]} Qe4 {[%emt 0:06:58]} 22. Nf4 {[%emt 0:03:59]} Ne6 {[%emt 0:06:16]} 23. Nd3 {[%emt 0:03:53]} h5 {[%emt 0:00:45]} 24. h4 {[%emt 0:02:19]} Rc3 {[%emt 0:00:36]} 25. Rxc3 {[%emt 0:00:45]} dxc3 {[%emt 0:00:04]} 26. Qxc3 {[%emt 0:00:16]} Qxe2 {[%emt 0:00:12]} 27. Ne5 {[%emt 0:11:33]} Rd8 {[%emt 0:00:33]} 28. Re1 {[%emt 0:02:31]} Qxa2 {[%emt 0:04:12]} 29. Qf3 {[%emt 0:00:19]} Nd4 {[%emt 0:00:21]} 30. Qxh5 {[%emt 0:00:54]} Qd5 {[%emt 0:00:29]} 31. Re4 {[%emt 0:13:15]} Nc6 {[%emt 0:04:14]} 32. Qe2 {[%emt 0:06:15]} Re8 {[%emt 0:00:50]} 33. f4 {[%emt 0:00:10]} f6 {[%emt 0:00:55]} 34. Qc4 {[%emt 0:01:52]} Qxc4 {[%emt 0:00:10]} 35. Rxc4 {[%emt 0:00:05]} Nxe5 {[%emt 0:00:18]} 36. fxe5 {[%emt 0:00:05]} Rxe5 {[%emt 0:00:08]} 37. Rc7 {[%emt 0:00:18]} a5 {[%emt 0:00:52]} 38. Kf2 {[%emt 0:00:28]} a4 {[%emt 0:00:40]} 39. Ra7 {[%emt 0:00:06]} Re4 {[%emt 0:00:03]} 40. Kf3 {[%emt 0:00:00]} Rb4 {[%emt 0:00:00]} 41. g4 {[%emt 0:04:34]} Kh7 {[%emt 0:08:49]} 42. Kg3 {[%emt 0:02:19]} Kg6 {[%emt 0:03:05]} 43. Ra5 {[%emt 0:01:58]} Rb3+ {[%emt 0:01:46]} 44. Kf4 {[%emt 0:00:13]} Ra3 {[%emt 0:00:09]} 45. g5 {[%emt 0:07:18]} Ra1 {[%emt 0:02:35]} 46. h5+ {[%emt 0:32:20]} Kh7 {[%emt 0:00:10]} 47. gxf6 {[%emt 0:01:09]} gxf6 {[%emt 0:00:34]} 48. Kf5 {[%emt 0:00:07]} a3 {[%emt 0:04:32]} 49. Kxf6 {[%emt 0:00:45]} a2 {[%emt 0:00:15]} 50. Ra7+ {[%emt 0:00:05]} Kh6 {[%emt 0:00:11]} 51. Ra6 {[%emt 0:00:05]} Kxh5 {[%emt 0:00:38]} 52. Kg7 {[%emt 0:01:13]} Rg1+ {[%emt 0:00:57]} 53. Kh7 {[%emt 0:00:07]} a1=Q {[%emt 0:01:26]} 54. Rh6+ {[%emt 0:00:04]} Kg4 {[%emt 0:00:18]} 55. Rg6+ {[%emt 0:00:25]} Kf5 {[%emt 0:00:41]} 0-1

[Event "69th RUS-ch Women Superfinal 2019"]
[Site "Izhevsk"]
[Date "2019.08.22"]
[Round "11.3"]
[White "Tomilova, Elena"]
[Black "Kosteniuk, Alexandra"]
[Result "0-1"]
[ECO "A46"]
[WhiteElo "2281"]
[BlackElo "2517"]
[Annotator "ChessBase"]
[PlyCount "92"]
[EventDate "2019.08.10"]
[EventType "tourn"]
[EventCountry "RUS"]
[SourceTitle "playchess.com"]
[Source "ChessBase"]
[SourceQuality "1"]
[TimeControl "40/5400+30:1800+30"]

1. d4 {[%emt 0:00:00]} Nf6 {[%emt 0:00:00]} 2. Nf3 {[%emt 0:00:00]} d5 {[%emt 0:00:00]} 3. c4 {[%emt 0:00:00]} e6 {[%emt 0:00:00]} 4. Qc2 {[%emt 0:00:07]} dxc4 {[%emt 0:01:00]} 5. Qxc4 {[%emt 0:00:11]} a6 {[%emt 0:00:46]} 6. Bf4 {[%emt 0:00:16]} Nc6 {[%emt 0:03:31]} 7. Nbd2 {[%emt 0:05:26]} Bd6 {[%emt 0:08:35]} 8. Bg3 {[%emt 0:00:49]} Qe7 {[%emt 0:05:19]} 9. e4 {[%emt 0:10:07]} e5 {[%emt 0:02:33]} 10. d5 {[%emt 0:00:23]} Nb8 {[%emt 0:00:21]} 11. Be2 {[%emt 0:04:24]} O-O {[%emt 0:01:28]} 12. O-O {[%emt 0:00:09]} c6 {[%emt 0:01:32]} 13. Rfd1 {[%emt 0:10:01]} b5 {[%emt 0:09:02]} 14. Qc2 {[%emt 0:03:26]} Bb7 {[%emt 0:01:38]} 15. Bh4 {[%emt 0:24:33]} Rc8 {[%emt 0:01:57]} 16. Rac1 {[%emt 0:00:37]} Nbd7 {[%emt 0:04:36]} 17. dxc6 {[%emt 0:00:18]} Rxc6 {[%emt 0:00:34]} 18. Qb1 {[%emt 0:01:11]} h6 {[%emt 0:01:34]} 19. Rxc6 {[%emt 0:08:27]} Bxc6 {[%emt 0:00:22]} 20. Bd3 {[%emt 0:00:18]} Nc5 {[%emt 0:06:12]} 21. Bc2 {[%emt 0:08:48]} a5 {[%emt 0:06:23]} 22. Nf1 {[%emt 0:01:58]} g5 {[%emt 0:03:29]} 23. Ne3 {[%emt 0:01:23]} Nfxe4 {[%emt 0:02:45]} 24. Nf5 {[%emt 0:03:25]} Qf6 {[%emt 0:02:09]} 25. Bg3 {[%emt 0:00:33]} Bc7 {[%emt 0:01:51]} 26. N5d4 {[%emt 0:02:14]} Nxg3 {[%emt 0:04:43]} 27. Nxc6 {[%emt 0:00:13]} Ne2+ {[%emt 0:00:30]} 28. Kf1 {[%emt 0:00:13]} g4 {[%emt 0:08:13]} 29. Nh4 {[%emt 0:01:26]} Qxh4 {[%emt 0:01:34]} 30. Kxe2 {[%emt 0:00:10]} Ra6 {[%emt 0:00:14]} 31. b4 {[%emt 0:03:52]} Ne6 {[%emt 0:03:26]} 32. g3 {[%emt 0:01:50]} Qf6 {[%emt 0:00:05]} 33. Be4 {[%emt 0:00:20]} Ng5 {[%emt 0:05:50]} 34. Nxa5 {[%emt 0:01:10]} Bb6 {[%emt 0:02:23]} 35. Rf1 {[%emt 0:00:10]} Nf3 {[%emt 0:01:29]} 36. Nb3 {[%emt 0:02:46]} Nxh2 {[%emt 0:00:46]} 37. Nc5 {[%emt 0:00:07]} Nxf1 {[%emt 0:01:07]} 38. Kxf1 {[%emt 0:00:10]} Ra3 {[%emt 0:00:27]} 39. Kg2 {[%emt 0:00:51]} Rc3 {[%emt 0:00:50]} 40. Qd1 {[%emt 0:00:00]} h5 {[%emt 0:00:00]} 41. Qd7 {[%emt 0:15:21]} Bxc5 {[%emt 0:04:50]} 42. Qc8+ {[%emt 0:00:21]} Kg7 {[%emt 0:00:05]} 43. bxc5 {[%emt 0:00:05]} Ra3 {[%emt 0:00:29]} 44. Qd7 {[%emt 0:11:28]} Rxa2 {[%emt 0:00:48]} 45. Bf5 {[%emt 0:00:05]} e4 {[%emt 0:00:21]} 46. c6 {[%emt 0:00:34]} e3 {[%emt 0:00:15]} 0-1

[Event "69th RUS-ch Women Superfinal 2019"]
[Site "Izhevsk"]
[Date "2019.08.22"]
[Round "11.4"]
[White "Goryachkina, Aleksandra"]
[Black "Shuvalova, Polina"]
[Result "1-0"]
[ECO "E06"]
[WhiteElo "2564"]
[BlackElo "2418"]
[Annotator "ChessBase"]
[PlyCount "109"]
[EventDate "2019.08.10"]
[EventType "tourn"]
[EventCountry "RUS"]
[SourceTitle "playchess.com"]
[Source "ChessBase"]
[SourceQuality "1"]
[TimeControl "40/5400+30:1800+30"]

1. d4 {[%emt 0:00:00]} Nf6 {[%emt 0:00:00]} 2. c4 {[%emt 0:00:00]} e6 {[%emt 0:00:00]} 3. g3 {[%emt 0:00:00]} d5 {[%emt 0:00:00]} 4. Bg2 {[%emt 0:00:00]} Be7 {[%emt 0:00:09]} 5. Nf3 {[%emt 0:00:08]} O-O {[%emt 0:00:08]} 6. Nc3 {[%emt 0:00:39]} c6 {[%emt 0:02:13]} 7. O-O {[%emt 0:01:39]} Nbd7 {[%emt 0:02:20]} 8. b3 {[%emt 0:02:10]} b6 {[%emt 0:03:28]} 9. Qd3 {[%emt 0:01:32]} Bb7 {[%emt 0:05:41]} 10. Bb2 {[%emt 0:04:37]} Rc8 {[%emt 0:03:20]} 11. Rad1 {[%emt 0:03:42]} Qc7 {[%emt 0:05:08]} 12. e4 {[%emt 0:02:29]} dxe4 {[%emt 0:04:21]} 13. Nxe4 {[%emt 0:00:08]} Nxe4 {[%emt 0:01:52]} 14. Qxe4 {[%emt 0:00:02]} c5 {[%emt 0:07:38]} 15. Qe2 {[%emt 0:04:28]} cxd4 {[%emt 0:02:45]} 16. Nxd4 {[%emt 0:06:05]} Bxg2 {[%emt 0:03:10]} 17. Kxg2 {[%emt 0:00:02]} a6 {[%emt 0:07:47]} 18. Kg1 {[%emt 0:08:39]} Bf6 {[%emt 0:02:23]} 19. Nf3 {[%emt 0:04:52]} Rfd8 {[%emt 0:04:39]} 20. Bxf6 {[%emt 0:03:53]} Nxf6 {[%emt 0:00:06]} 21. Rxd8+ {[%emt 0:02:59]} Rxd8 {[%emt 0:00:06]} 22. Rd1 {[%emt 0:00:11]} h6 {[%emt 0:01:18]} 23. Rxd8+ {[%emt 0:06:05]} Qxd8 {[%emt 0:02:50]} 24. Qd2 {[%emt 0:00:21]} Qxd2 {[%emt 0:05:46]} 25. Nxd2 {[%emt 0:01:07]} e5 {[%emt 0:00:37]} 26. f3 {[%emt 0:04:46]} Kf8 {[%emt 0:01:03]} 27. Kf2 {[%emt 0:02:01]} Ke7 {[%emt 0:00:06]} 28. b4 {[%emt 0:02:12]} Nd7 {[%emt 0:06:21]} 29. Nb3 {[%emt 0:04:45]} f5 {[%emt 0:01:19]} 30. Ke3 {[%emt 0:03:30]} Kd6 {[%emt 0:01:35]} 31. g4 {[%emt 0:03:34]} g6 {[%emt 0:01:36]} 32. gxf5 {[%emt 0:04:20]} gxf5 {[%emt 0:00:11]} 33. f4 {[%emt 0:02:15]} Ke6 {[%emt 0:05:52]} 34. a4 {[%emt 0:06:57]} a5 {[%emt 0:04:06]} 35. bxa5 {[%emt 0:02:54]} bxa5 {[%emt 0:00:30]} 36. fxe5 {[%emt 0:00:30]} Kxe5 {[%emt 0:02:48]} 37. Nxa5 {[%emt 0:00:25]} Nb6 {[%emt 0:04:00]} 38. Nc6+ {[%emt 0:00:53]} Kf6 {[%emt 0:06:56]} 39. a5 {[%emt 0:02:29]} Nxc4+ {[%emt 0:00:04]} 40. Kf4 {[%emt 0:00:00]} Ke6 {[%emt 0:00:00]} 41. a6 {[%emt 0:03:42]} Kd6 {[%emt 0:09:12]} 42. a7 {[%emt 0:09:08]} Nb6 {[%emt 0:00:11]} 43. Nd4 {[%emt 0:00:58]} Kc7 {[%emt 0:00:48]} 44. Nxf5 {[%emt 0:01:16]} Kb7 {[%emt 0:04:39]} 45. Nxh6 {[%emt 0:00:39]} Kxa7 {[%emt 0:00:36]} 46. Nf5 {[%emt 0:08:20]} Kb7 {[%emt 0:01:02]} 47. h4 {[%emt 0:01:26]} Kc7 {[%emt 0:00:31]} 48. h5 {[%emt 0:00:52]} Nd7 {[%emt 0:01:55]} 49. h6 {[%emt 0:01:11]} Nf8 {[%emt 0:01:48]} 50. Kg5 {[%emt 0:02:06]} Kd7 {[%emt 0:00:14]} 51. Kf6 {[%emt 0:00:23]} Nh7+ {[%emt 0:00:53]} 52. Kg6 {[%emt 0:00:25]} Nf8+ {[%emt 0:00:09]} 53. Kf7 {[%emt 0:02:27]} Nh7 {[%emt 0:00:37]} 54. Nd4 {[%emt 0:01:23]} Kd6 {[%emt 0:01:43]} 55. Nf3 {[%emt 0:00:17]} 1-0

[Event "69th RUS-ch Women Superfinal 2019"]
[Site "Izhevsk"]
[Date "2019.08.22"]
[Round "11.5"]
[White "Bodnaruk, Anastasia"]
[Black "Charochkina, Daria"]
[Result "1/2-1/2"]
[ECO "B12"]
[WhiteElo "2440"]
[BlackElo "2338"]
[Annotator "NA"]
[PlyCount "129"]
[EventDate "2019.08.10"]
[EventType "tourn"]
[EventCountry "RUS"]
[SourceTitle "playchess.com"]
[Source "ChessBase"]
[SourceQuality "1"]
[TimeControl "40/5400+30:1800+30"]

1. e4 {[%emt 0:00:00]} c6 {[%emt 0:00:00]} 2. d4 {[%emt 0:00:00]} d5 {[%emt 0:00:00]} 3. e5 {[%emt 0:00:00]} c5 {[%emt 0:00:00]} 4. dxc5 {[%emt 0:01:58]} e6 {[%emt 0:00:00]} 5. a3 {[%emt 0:04:26]} Bxc5 {[%emt 0:00:10]} 6. b4 {[%emt 0:00:08]} Bb6 {[%emt 0:00:12]} 7. Nf3 {[%emt 0:02:05]} Ne7 {[%emt 0:00:22]} 8. Bd3 {[%emt 0:01:04]} a5 {[%emt 0:05:59]} 9. Bb2 {[%emt 0:09:44]} axb4 {[%emt 0:09:32]} 10. axb4 {[%emt 0:00:19]} Rxa1 {[%emt 0:00:06]} 11. Bxa1 {[%emt 0:00:01]} Nbc6 {[%emt 0:00:21]} 12. b5 {[%emt 0:02:10]} Nb4 {[%emt 0:27:59]} 13. Be2 {[%emt 0:00:24]} d4 {[%emt 0:00:03]} 14. O-O {[%emt 0:02:01]} Nf5 {[%emt 0:05:23]} 15. Qd2 {[%emt 0:10:36]} d3 {[%emt 0:02:58]} 16. cxd3 {[%emt 0:01:22]} Nd5 {[%emt 0:00:08]} 17. d4 {[%emt 0:09:11]} O-O {[%emt 0:00:37]} 18. Bd3 {[%emt 0:08:46]} Bd7 {[%emt 0:13:14]} 19. g3 {[%emt 0:15:17]} f6 {[%emt 0:03:55]} 20. Be2 {[%emt 0:09:43]} Be8 {[%emt 0:07:16]} 21. Na3 {[%emt 0:00:26]} Ba5 {[%emt 0:00:59]} 22. Qa2 {[%emt 0:03:27]} Qe7 {[%emt 0:01:14]} 23. Bc4 {[%emt 0:02:00]} Kh8 {[%emt 0:01:04]} 24. Nc2 {[%emt 0:01:36]} Qd8 {[%emt 0:06:15]} 25. Qa3 {[%emt 0:07:15]} Bh5 {[%emt 0:00:49]} 26. Nfe1 {[%emt 0:01:04]} Nfe7 {[%emt 0:02:52]} 27. Ng2 {[%emt 0:02:13]} Bg6 {[%emt 0:04:34]} 28. Nce3 {[%emt 0:00:50]} fxe5 {[%emt 0:03:33]} 29. dxe5 {[%emt 0:00:33]} Bb6 {[%emt 0:00:52]} 30. Qd6 {[%emt 0:04:01]} Be4 {[%emt 0:00:09]} 31. Nxd5 {[%emt 0:01:20]} exd5 {[%emt 0:01:04]} 32. Be2 {[%emt 0:01:28]} Qxd6 {[%emt 0:01:04]} 33. exd6 {[%emt 0:00:01]} Nf5 {[%emt 0:00:04]} 34. Be5 {[%emt 0:00:21]} Nd4 {[%emt 0:00:36]} 35. Bxd4 {[%emt 0:00:59]} Bxd4 {[%emt 0:00:02]} 36. Nf4 {[%emt 0:00:05]} Bb6 {[%emt 0:01:13]} 37. Bg4 {[%emt 0:00:57]} h5 {[%emt 0:00:46]} 38. Ne6 {[%emt 0:00:33]} Rf6 {[%emt 0:00:30]} 39. Bh3 {[%emt 0:00:20]} Bd3 {[%emt 0:00:30]} 40. Rd1 {[%emt 0:00:00]} Bxf2+ {[%emt 0:00:00]} 41. Kh1 {[%emt 0:20:10]} Be4+ {[%emt 0:14:13]} 42. Bg2 {[%emt 0:00:04]} Rxe6 {[%emt 0:00:02]} 43. Bxe4 {[%emt 0:00:34]} Rxe4 {[%emt 0:08:54]} 44. d7 {[%emt 0:00:24]} Bb6 {[%emt 0:00:04]} 45. Ra1 {[%emt 0:00:32]} Rb4 {[%emt 0:01:14]} 46. Ra7 {[%emt 0:03:09]} Rb1+ {[%emt 0:03:17]} 47. Kg2 {[%emt 0:00:02]} Rb2+ {[%emt 0:00:01]} 48. Kh3 {[%emt 0:05:41]} g5 {[%emt 0:00:21]} 49. Rxb7 {[%emt 0:00:48]} Bd8 {[%emt 0:00:17]} 50. g4 {[%emt 0:00:11]} Kg7 {[%emt 0:06:01]} 51. Rb8 {[%emt 0:04:27]} Bc7 {[%emt 0:01:02]} 52. gxh5 {[%emt 0:00:07]} Kh6 {[%emt 0:02:37]} 53. Rh8+ {[%emt 0:01:02]} Kg7 {[%emt 0:00:07]} 54. Rc8 {[%emt 0:00:26]} Ba5 {[%emt 0:00:40]} 55. Kg4 {[%emt 0:00:37]} Rxb5 {[%emt 0:01:26]} 56. d8=Q {[%emt 0:00:20]} Bxd8 {[%emt 0:00:03]} 57. Rxd8 {[%emt 0:00:02]} Rb2 {[%emt 0:00:52]} 58. Rd7+ {[%emt 0:01:02]} Kh6 {[%emt 0:00:23]} 59. Rd6+ {[%emt 0:00:06]} Kh7 {[%emt 0:00:06]} 60. h3 {[%emt 0:00:57]} Rg2+ {[%emt 0:00:25]} 61. Kf5 {[%emt 0:00:04]} Rg3 {[%emt 0:01:00]} 62. Rxd5 {[%emt 0:00:03]} Kh6 {[%emt 0:00:14]} 63. Rd8 {[%emt 0:00:20]} Rf3+ {[%emt 0:00:04]} 64. Kg4 {[%emt 0:00:20]} Rf4+ {[%emt 0:00:08]} 65. Kg3 {[%emt 0:00:03]} 1/2-1/2

[Event "69th RUS-ch Women Superfinal 2019"]
[Site "Izhevsk"]
[Date "2019.08.22"]
[Round "12"]
[White "Girya, Olga"]
[Black "Pogonina, Natalija"]
[Result "1-0"]
[ECO "D30"]
[WhiteElo "2457"]
[BlackElo "2457"]
[Annotator "ChessBase"]
[PlyCount "65"]
[EventDate "2019.08.10"]
[EventType "tourn"]
[EventCountry "RUS"]
[SourceTitle "playchess.com"]
[Source "ChessBase"]
[SourceQuality "1"]
[TimeControl "900+10"]

1. d4 {[%emt 0:00:00]} d5 {[%emt 0:00:00]} 2. c4 {[%emt 0:00:00]} e6 {[%emt 0:00:00]} 3. Nf3 {[%emt 0:00:00]} Nf6 {[%emt 0:00:00]} 4. Bg5 {[%emt 0:00:00]} Be7 {[%emt 0:00:04]} 5. e3 {[%emt 0:00:00]} h6 {[%emt 0:00:05]} 6. Bxf6 {[%emt 0:00:02]} Bxf6 {[%emt 0:00:02]} 7. Qc2 {[%emt 0:00:05]} O-O {[%emt 0:00:09]} 8. h4 {[%emt 0:00:10]} c5 {[%emt 0:00:23]} 9. Nc3 {[%emt 0:01:03]} cxd4 {[%emt 0:00:10]} 10. exd4 {[%emt 0:00:07]} Nc6 {[%emt 0:00:11]} 11. O-O-O {[%emt 0:00:29]} a6 {[%emt 0:00:39]} 12. g4 {[%emt 0:00:37]} dxc4 {[%emt 0:02:33]} 13. g5 {[%emt 0:00:03]} hxg5 {[%emt 0:00:08]} 14. hxg5 {[%emt 0:00:58]} Bxg5+ {[%emt 0:00:02]} 15. Kb1 {[%emt 0:00:27]} f5 {[%emt 0:00:40]} 16. Nxg5 {[%emt 0:03:00]} Qxg5 {[%emt 0:00:04]} 17. Bxc4 {[%emt 0:00:01]} b5 {[%emt 0:00:45]} 18. Bb3 {[%emt 0:01:52]} Na5 {[%emt 0:02:14]} 19. Rdg1 {[%emt 0:03:31]} Qf6 {[%emt 0:00:44]} 20. Nd5 {[%emt 0:02:52]} exd5 {[%emt 0:04:45]} 21. Bxd5+ {[%emt 0:00:02]} Be6 {[%emt 0:00:01]} 22. Bxe6+ {[%emt 0:00:01]} Qxe6 {[%emt 0:00:03]} 23. Qc7 {[%emt 0:00:02]} Qe4+ {[%emt 0:01:45]} 24. Ka1 {[%emt 0:00:02]} Qxd4 {[%emt 0:00:02]} 25. Qxa5 {[%emt 0:01:56]} Rfd8 {[%emt 0:01:11]} 26. Qc7 {[%emt 0:00:13]} Rac8 {[%emt 0:00:10]} 27. Qh2 {[%emt 0:00:27]} Qf6 {[%emt 0:00:48]} 28. Qh7+ {[%emt 0:00:41]} Kf7 {[%emt 0:00:03]} 29. Qh5+ {[%emt 0:00:01]} Kf8 {[%emt 0:01:31]} 30. Rg6 {[%emt 0:00:38]} Qe5 {[%emt 0:00:28]} 31. Rg5 {[%emt 0:00:04]} Rc5 {[%emt 0:00:18]} 32. Qh8+ {[%emt 0:00:08]} Kf7 {[%emt 0:00:08]} 33. Qxd8 {[%emt 0:00:13]} 1-0

[Event "69th RUS-ch Women Superfinal 2019"]
[Site "Izhevsk"]
[Date "2019.08.22"]
[Round "13"]
[White "Pogonina, Natalija"]
[Black "Girya, Olga"]
[Result "1-0"]
[ECO "E06"]
[WhiteElo "2457"]
[BlackElo "2457"]
[Annotator "ChessBase"]
[PlyCount "83"]
[EventDate "2019.08.10"]
[EventType "tourn"]
[EventCountry "RUS"]
[SourceTitle "playchess.com"]
[Source "ChessBase"]
[SourceQuality "1"]
[TimeControl "900+10"]

1. d4 {[%emt 0:00:00]} Nf6 {[%emt 0:00:00]} 2. c4 {[%emt 0:00:00]} e6 {[%emt 0:00:00]} 3. g3 {[%emt 0:00:01]} d5 {[%emt 0:00:00]} 4. Nf3 {[%emt 0:00:04]} Be7 {[%emt 0:00:00]} 5. Bg2 {[%emt 0:00:08]} O-O {[%emt 0:00:00]} 6. O-O {[%emt 0:00:02]} dxc4 {[%emt 0:00:00]} 7. Qc2 {[%emt 0:00:04]} a6 {[%emt 0:00:00]} 8. a4 {[%emt 0:00:02]} Bd7 {[%emt 0:00:03]} 9. Qxc4 {[%emt 0:00:03]} Bc6 {[%emt 0:00:01]} 10. Bf4 {[%emt 0:00:03]} Bd6 {[%emt 0:00:07]} 11. Qc1 {[%emt 0:00:02]} a5 {[%emt 0:00:02]} 12. Nc3 {[%emt 0:01:54]} Na6 {[%emt 0:00:06]} 13. Bg5 {[%emt 0:00:09]} h6 {[%emt 0:01:45]} 14. Bh4 {[%emt 0:00:12]} Be7 {[%emt 0:00:25]} 15. Bxf6 {[%emt 0:00:12]} Bxf6 {[%emt 0:00:01]} 16. e4 {[%emt 0:00:11]} Nb4 {[%emt 0:00:24]} 17. Rd1 {[%emt 0:00:13]} Rc8 {[%emt 0:01:01]} 18. Qd2 {[%emt 0:01:54]} b6 {[%emt 0:00:28]} 19. Rac1 {[%emt 0:00:14]} Qe8 {[%emt 0:02:21]} 20. b3 {[%emt 0:00:19]} Bb7 {[%emt 0:00:17]} 21. Qe3 {[%emt 0:02:19]} Qd8 {[%emt 0:01:41]} 22. h4 {[%emt 0:00:11]} Qe8 {[%emt 0:04:16]} 23. Nb5 {[%emt 0:02:32]} Qd8 {[%emt 0:01:37]} 24. Rd2 {[%emt 0:01:05]} Be7 {[%emt 0:00:57]} 25. Ne5 {[%emt 0:01:33]} Bd6 {[%emt 0:00:11]} 26. Nc4 {[%emt 0:00:05]} Be7 {[%emt 0:00:21]} 27. Nc3 {[%emt 0:00:52]} Qe8 {[%emt 0:00:44]} 28. Rcd1 {[%emt 0:00:22]} Rd8 {[%emt 0:00:13]} 29. Qf4 {[%emt 0:00:22]} Rc8 {[%emt 0:00:23]} 30. Nb5 {[%emt 0:00:17]} Qd8 {[%emt 0:00:07]} 31. d5 {[%emt 0:00:15]} exd5 {[%emt 0:00:54]} 32. exd5 {[%emt 0:00:01]} Ba6 {[%emt 0:01:00]} 33. d6 {[%emt 0:00:42]} cxd6 {[%emt 0:00:03]} 34. Nbxd6 {[%emt 0:00:39]} Bxd6 {[%emt 0:00:21]} 35. Rxd6 {[%emt 0:00:46]} Qc7 {[%emt 0:00:08]} 36. Nxb6 {[%emt 0:00:12]} Rb8 {[%emt 0:00:37]} 37. Nd7 {[%emt 0:00:15]} Rbd8 {[%emt 0:00:19]} 38. Nxf8 {[%emt 0:00:43]} Rxf8 {[%emt 0:00:01]} 39. Qf5 {[%emt 0:00:31]} Be2 {[%emt 0:00:09]} 40. R1d2 {[%emt 0:00:16]} Qc1+ {[%emt 0:00:18]} 41. Kh2 {[%emt 0:00:02]} Qe1 {[%emt 0:00:10]} 42. Qe4 {[%emt 0:00:36]} 1-0